fUST/lending_fUST_20250501
["ID","MTS","AMOUNT","RATE_DAILY","PERIOD"]
[359525125,1746090638449,-500.0,0.00023879,2]
[359525126,1746090638458,-500.0,0.00023879,2]
[359525127,1746090638468,-500.0,0.00023879,2]
[359525128,1746090638477,-500.0,0.00023879,2]
[359525129,1746090638486,-500.0,0.00023879,2]
[359525130,1746090638496,-500.0,0.00023879,2]
[359525131,1746090638506,-500.0,0.00023879,2]
[359525132,1746090638516,-500.0,0.00023879,2]
[359525133,1746090638525,-500.0,0.00023879,2]
[359525134,1746090638535,-500.0,0.00023879,2]
[359525135,1746090638545,-500.0,0.00023879,2]
[359525136,1746090638555,-500.0,0.00023879,2]
[359525137,1746090638564,-500.0,0.00023879,2]
[359525138,1746090638574,-500.0,0.00023879,2]
[359525139,1746090638584,-501.12920516,0.00023879,2]
[359525140,1746090638594,-500.0,0.00023879,2]
[359525141,1746090638605,-500.0,0.00023879,2]
[359525142,1746090638620,-500.0,0.00023879,2]
[359525143,1746090638630,-379.33562664,0.00023879,2]
[359525144,1746090638641,-500.0,0.00023879,2]
[359525145,1746090638650,-500.0,0.00023879,2]
[359525146,1746090638660,-500.0,0.00023879,2]
[359525147,1746090638669,-500.0,0.00023879,2]
[359525148,1746090638680,-500.0,0.00023879,2]
[359525149,1746090638690,-500.0,0.00023879,2]
[359525150,1746090638700,-500.0,0.00023879,2]
[359525151,1746090638710,-500.0,0.00023879,2]
[359525152,1746090638720,-500.0,0.00023879,2]
[359525153,1746090638729,-500.0,0.00023879,2]
[359525154,1746090638741,-500.0,0.00023879,2]
[359525155,1746090638750,-500.0,0.00023879,2]
[359525156,1746090638761,-500.0,0.00023879,2]
[359525157,1746090638771,-500.0,0.00023879,2]
[359525158,1746090638782,-500.0,0.00023879,2]
[359525159,1746090638793,-500.0,0.00023879,2]
[359525160,1746090638803,-8768.12,0.0002388,2]
[359525161,1746090638813,-500.0,0.00023898,2]
[359525162,1746090638822,-500.0,0.00023898,2]
[359525163,1746090638832,-247.40339561,0.00023898,2]
[359525164,1746090638842,-500.0,0.00023898,2]
[359525165,1746090638851,-500.0,0.00023898,2]
[359525166,1746090638860,-500.0,0.00023898,2]
[359525167,1746090638869,-223.09493459,0.00023898,2]
[359525168,1746090638879,-500.0,0.00023898,2]
[359525169,1746090638888,-500.0,0.00023898,2]
[359525170,1746090638898,-500.0,0.00023898,2]
[359525171,1746090638907,-242.02916544,0.00023898,2]
[359525172,1746090638916,-500.0,0.00023898,2]
[359525173,1746090638926,-500.0,0.00023898,2]
[359525174,1746090638935,-500.0,0.00023898,2]
[359525175,1746090638945,-401.51281582,0.00023898,2]
[359525176,1746090638954,-500.0,0.00023898,2]
[359525177,1746090638964,-500.0,0.00023898,2]
[359525178,1746090638973,-500.0,0.00023898,2]
[359525179,1746090638983,-500.0,0.00023898,2]
[359525180,1746090638992,-50000.0,0.00023899,2]
[359525181,1746090639002,-157.58,0.000239,2]
[359525182,1746090639013,-500.0,0.0002395,2]
[359525183,1746090639023,-500.0,0.0002395,2]
[359525184,1746090639033,-500.0,0.0002395,2]
[359525185,1746090639042,-300.0,0.0002395,2]
[359525186,1746090639051,-500.0,0.0002395,2]
[359525187,1746090639061,-500.0,0.0002395,2]
[359525188,1746090639071,-500.0,0.0002395,2]
[359525189,1746090639080,-24628.56644601,0.0002399,2]
[359525190,1746090639090,-2500.0,0.00024,2]
[359525191,1746090639100,-500.0,0.00024,2]
[359525192,1746090639110,-504.80803374,0.00024,2]
[359525193,1746090639119,-500.0,0.00024,2]
[359525194,1746090639129,-169.8954447,0.00024,2]
[359525195,1746090639138,-500.0,0.00024,2]
[359525196,1746090639148,-500.0,0.00024,2]
[359525197,1746090639157,-500.0,0.00024,2]
[359525198,1746090639167,-500.0,0.00024,2]
[359525199,1746090639176,-500.0,0.00024,2]
[359525200,1746090639186,-500.0,0.00024,2]
[359525201,1746090639195,-500.0,0.00024,2]
[359525202,1746090639204,-161.14138799,0.00024241,2]
[359525203,1746090639213,-152.0,0.00024782,2]
[359525204,1746090639222,-474.34414878,0.000248,2]
[359525205,1746090639232,-3274.0,0.00024873,2]
[359525206,1746090639241,-3274.0,0.00024873,2]
[359525207,1746090639250,-100000.0,0.0002488,2]
[359525208,1746090639260,-228675.99580955,0.0002489,2]
[359525808,1746090646178,-1.33512264,0.0002489,2]
[359525814,1746090646230,-72287.40160372,0.0002489,2]
[359525817,1746090646243,-51838.19929191,0.0002489,2]
[359526177,1746090744124,-156.10348487,0.00022461,2]
[359526178,1746090780935,-152.0,0.00022461,2]
[359526179,1746090784317,-207.08093353,0.00022461,2]
[359526180,1746090789046,-232.50997298,0.00022461,2]
[359526181,1746090794026,-252.30560862,0.00022461,2]
[359526182,1746090798029,-236.57025733,0.00022461,2]
[359526183,1746090803133,-644.19232268,0.00022461,2]
[359526184,1746090808423,-115.55156469,0.00022461,2]
[359526185,1746090808446,-43.86985568,0.00022461,2]
[359526186,1746090903152,2000.0,0.0001644,5]
[359526187,1746091203104,2000.0,0.0001644,5]
[359526188,1746091503141,2000.0,0.0001644,5]
[359526189,1746091503226,2000.0,0.0001644,5]
[359526194,1746091556535,-168.31226255,0.000229,2]
[359526195,1746091561685,-367.60921704,0.000229,2]
[359526196,1746091585995,-427.8109829,0.00022,2]
[359526197,1746091589151,-405.84684858,0.00022,2]
[359526198,1746091594395,-283.90461392,0.00022,2]
[359526199,1746091599125,-248.68227177,0.00022,2]
[359526200,1746091602937,-326.8652195,0.00022,2]
[359526201,1746091606580,-269.4918856,0.00022,2]
[359526202,1746091611605,-300.0,0.00022,2]
[359526203,1746091616749,-320.1901891,0.00022,2]
[359526204,1746091618781,-7045.28650904,0.00022,2]
[359526205,1746091618801,-77911.71349096,0.00022,2]
[359526206,1746091622795,-250.0,0.00021999,2]
[359526207,1746091627659,-50.0,0.00021999,2]
[359526208,1746091627682,-354.41296874,0.00022,2]
[359526219,1746091722747,497.559645,0.0002,120]
[359526232,1746091756118,-300.0,0.00021999,2]
[359526233,1746091756140,-10909.89540718,0.00022,2]
[359526234,1746091764130,-5948.94368871,0.00022,2]
[359526235,1746091803086,2000.0,0.0001644,5]
[359526236,1746091820166,-303.17430411,0.00021794,2]
[359526237,1746091824868,2000.0,0.00025,30]
[359526238,1746091825413,-17.01588499,0.00021794,2]
[359526283,1746091838406,-150.18382701,0.000218,2]
[359526284,1746091838416,-850.0,0.000219,2]
[359526285,1746091838426,-159.67846778,0.000219,2]
[359526286,1746091838436,-124.8125316,0.00022,2]
[359526287,1746091838446,-150.183827,0.0002205,2]
[359526288,1746091838455,-139.31952434,0.00022299,2]
[359526290,1746091838489,-10.86430266,0.00022299,2]
[359526292,1746091838499,-150.183827,0.00022548,2]
[359526293,1746091838508,-167.12509055,0.00022898,2]
[359526294,1746091838521,-332.87490945,0.00022898,2]
[359526295,1746091838532,-500.0,0.00022898,2]
[359526296,1746091838544,-500.0,0.00022898,2]
[359526297,1746091838554,-500.0,0.00022898,2]
[359526298,1746091838564,-500.0,0.00022898,2]
[359526299,1746091838574,-500.0,0.00022898,2]
[359526300,1746091838583,-500.0,0.00022898,2]
[359526301,1746091838593,-500.0,0.00022898,2]
[359526302,1746091838603,-500.0,0.00022898,2]
[359526303,1746091838612,-500.0,0.00022898,2]
[359526304,1746091838621,-500.0,0.00022898,2]
[359526305,1746091838631,-154.73695085,0.00022898,2]
[359526306,1746091838641,-500.0,0.00022898,2]
[359526307,1746091838651,-500.0,0.00022898,2]
[359526308,1746091838660,-500.0,0.00022898,2]
[359526309,1746091838670,-500.0,0.00022898,2]
[359526310,1746091838679,-500.0,0.00022898,2]
[359526311,1746091838689,-500.0,0.00022898,2]
[359526312,1746091838698,-500.0,0.00022898,2]
[359526313,1746091838708,-500.0,0.00022898,2]
[359526314,1746091838717,-500.0,0.00022898,2]
[359526315,1746091838727,-500.0,0.00022898,2]
[359526316,1746091838736,-500.0,0.00022898,2]
[359526317,1746091838746,-166.79213391,0.00022898,2]
[359526318,1746091838756,-528.49408969,0.00022898,2]
[359526319,1746091838765,-528.49408969,0.00022898,2]
[359526320,1746091838775,-528.49408969,0.00022898,2]
[359526321,1746091838785,-528.49408969,0.00022898,2]
[359526322,1746091838795,-528.49408969,0.00022898,2]
[359526323,1746091838805,-528.49408969,0.00022898,2]
[359526324,1746091838814,-528.49408969,0.00022898,2]
[359526325,1746091838824,-528.49408969,0.00022898,2]
[359526326,1746091838833,-528.49408969,0.00022898,2]
[359526327,1746091838843,-528.49408969,0.00022898,2]
[359526328,1746091838853,-528.49408969,0.00022898,2]
[359526329,1746091838862,-528.49408969,0.00022898,2]
[359526330,1746091838871,-528.49408969,0.00022898,2]
[359526331,1746091838881,-528.49408969,0.00022898,2]
[359526332,1746091838890,-528.49408969,0.00022898,2]
[359526333,1746091838899,-528.49408969,0.00022898,2]
[359526334,1746091838909,-528.49408969,0.00022898,2]
[359526335,1746091838918,-528.49408969,0.00022898,2]
[359526336,1746091838927,-528.49408969,0.00022898,2]
[359526337,1746091838937,-528.49408969,0.00022898,2]
[359526338,1746091838946,-528.49408969,0.00022898,2]
[359526339,1746091838955,-528.49408969,0.00022898,2]
[359526340,1746091838965,-528.49408969,0.00022898,2]
[359526341,1746091838974,-528.49408969,0.00022898,2]
[359526342,1746091838986,-528.49408969,0.00022898,2]
[359526343,1746091838997,-528.49408969,0.00022898,2]
[359526344,1746091839007,-528.49408969,0.00022898,2]
[359526345,1746091839016,-528.49408969,0.00022898,2]
[359526346,1746091839026,-528.49408969,0.00022898,2]
[359526347,1746091839036,-528.49408969,0.00022898,2]
[359526348,1746091839046,-528.49408969,0.00022898,2]
[359526349,1746091839056,-528.49408969,0.00022898,2]
[359526350,1746091839067,-528.49408969,0.00022898,2]
[359526351,1746091839077,-528.49408969,0.00022898,2]
[359526352,1746091839086,-528.49408969,0.00022898,2]
[359526353,1746091839096,-528.49408969,0.00022898,2]
[359526354,1746091839105,-528.49408969,0.00022898,2]
[359526355,1746091839115,-528.49408969,0.00022898,2]
[359526356,1746091839124,-528.49408969,0.00022898,2]
[359526357,1746091839134,-528.49408969,0.00022898,2]
[359526358,1746091839143,-528.49408969,0.00022898,2]
[359526359,1746091839153,-528.49408969,0.00022898,2]
[359526360,1746091839162,-528.49408969,0.00022898,2]
[359526361,1746091839172,-528.49408969,0.00022898,2]
[359526362,1746091839182,-528.49408969,0.00022898,2]
[359526363,1746091839191,-528.49408969,0.00022898,2]
[359526364,1746091839202,-528.49408969,0.00022898,2]
[359526365,1746091839212,-528.49408969,0.00022898,2]
[359526366,1746091839223,-528.49408969,0.00022898,2]
[359526367,1746091839233,-528.49408969,0.00022898,2]
[359526368,1746091839243,-528.49408969,0.00022898,2]
[359526369,1746091839252,-528.49408969,0.00022898,2]
[359526370,1746091839261,-528.49408969,0.00022898,2]
[359526371,1746091839271,-528.49408969,0.00022898,2]
[359526372,1746091839281,-528.49408969,0.00022898,2]
[359526373,1746091839290,-528.49408969,0.00022898,2]
[359526374,1746091839300,-528.49408969,0.00022898,2]
[359526375,1746091839309,-528.49408969,0.00022898,2]
[359526376,1746091839319,-528.49408969,0.00022898,2]
[359526377,1746091839328,-528.49408969,0.00022898,2]
[359526378,1746091839337,-528.49408969,0.00022898,2]
[359526379,1746091839346,-528.49408969,0.00022898,2]
[359526380,1746091839356,-528.49408969,0.00022898,2]
[359526381,1746091839365,-528.49408969,0.00022898,2]
[359526382,1746091839375,-528.49408969,0.00022898,2]
[359526383,1746091839384,-528.49408969,0.00022898,2]
[359526384,1746091839393,-528.49408969,0.00022898,2]
[359526385,1746091839403,-528.49408969,0.00022898,2]
[359526386,1746091839412,-525.41819815,0.00022898,2]
[359526387,1746091839421,-525.41819815,0.00022898,2]
[359526388,1746091839430,-525.41819815,0.00022898,2]
[359526389,1746091839439,-525.41819815,0.00022898,2]
[359526390,1746091839449,-525.41819815,0.00022898,2]
[359526391,1746091839458,-525.41819815,0.00022898,2]
[359526392,1746091839469,-525.41819815,0.00022898,2]
[359526393,1746091839479,-525.41819815,0.00022898,2]
[359526394,1746091839488,-525.41819815,0.00022898,2]
[359526395,1746091839497,-525.41819815,0.00022898,2]
[359526396,1746091839507,-525.41819815,0.00022898,2]
[359526397,1746091839516,-525.41819815,0.00022898,2]
[359526398,1746091839526,-525.41819815,0.00022898,2]
[359526399,1746091839535,-525.41819815,0.00022898,2]
[359526400,1746091839544,-525.41819815,0.00022898,2]
[359526401,1746091839554,-525.41819815,0.00022898,2]
[359526402,1746091839564,-525.41819815,0.00022898,2]
[359526403,1746091839574,-525.41819815,0.00022898,2]
[359526404,1746091839584,-525.41819815,0.00022898,2]
[359526405,1746091839593,-525.41819815,0.00022898,2]
[359526406,1746091839603,-300.0,0.00022899,2]
[359526407,1746091839612,-542.82654726,0.00022899,2]
[359526408,1746091839622,-542.82654726,0.00022899,2]
[359526409,1746091839632,-500.0,0.000229,2]
[359526410,1746091839643,-500.0,0.000229,2]
[359526411,1746091839652,-500.0,0.000229,2]
[359526412,1746091839662,-500.0,0.000229,2]
[359526413,1746091839673,-500.0,0.000229,2]
[359526414,1746091839683,-500.0,0.000229,2]
[359526415,1746091839692,-500.0,0.000229,2]
[359526416,1746091839702,-500.0,0.000229,2]
[359526417,1746091839711,-500.0,0.000229,2]
[359526418,1746091839721,-500.0,0.000229,2]
[359526419,1746091839730,-300.0,0.000229,2]
[359526420,1746091839739,-50000.0,0.000229,2]
[359526421,1746091839749,-500.0,0.000229,2]
[359526422,1746091839758,-152.0,0.00022996,2]
[359526423,1746091839768,-274.0,0.00022998,2]
[359526424,1746091839777,-500.0,0.00023,2]
[359526425,1746091839787,-500.0,0.00023,2]
[359526426,1746091839796,-418.69159822,0.00023,2]
[359526427,1746091839806,-24900.0,0.00023048,2]
[359526428,1746091839815,-10000.0,0.00023179,2]
[359526429,1746091839824,-223.4203445,0.00023401,2]
[359526430,1746091839834,-239.3587891,0.0002361,2]
[359526431,1746091839844,-1000.0,0.00023779,2]
[359526433,1746091839853,-250.0,0.00023779,2]
[359526434,1746091839863,-399.165286,0.00023881,2]
[359526435,1746091839872,-1265.29895377,0.0002399,2]
[359526436,1746091839882,-250.0,0.00024158,2]
[359526437,1746091839891,-330.26624829,0.000245,2]
[359526438,1746091839901,-600.0,0.00024544,2]
[359526439,1746091839910,-310.373984,0.00024587,2]
[359526440,1746091839920,-157.58,0.00024773,2]
[359526441,1746091839930,-414.78805135,0.00024773,2]
[359526442,1746091839939,-180.51,0.0002479,3]
[359526443,1746091839949,-541.58,0.0002479,3]
[359526444,1746091839958,-370000.0,0.000248,2]
[359526445,1746091839968,-420.0,0.00024861,2]
[359526446,1746091839978,-500.0,0.00024873,2]
[359526447,1746091839992,-500.0,0.00024873,2]
[359526448,1746091840003,-500.0,0.00024873,2]
[359526449,1746091840013,-500.0,0.00024873,2]
[359526450,1746091840022,-500.0,0.00024873,2]
[359526451,1746091840033,-500.0,0.00024873,2]
[359526452,1746091840043,-500.0,0.00024873,2]
[359526453,1746091840053,-100000.0,0.0002488,2]
[359526454,1746091840063,-184.486,0.0002489,8]
[359526455,1746091840072,-360.0,0.0002489,3]
[359526456,1746091840082,-360.0,0.0002489,3]
[359526457,1746091840091,-360.0,0.0002489,3]
[359526458,1746091840100,-360.0,0.0002489,3]
[359526459,1746091840110,-360.0,0.0002489,3]
[359526461,1746091840120,-360.0,0.0002489,3]
[359526462,1746091840129,-360.0,0.0002489,3]
[359526464,1746091840139,-360.0,0.0002489,3]
[359526465,1746091840148,-308.29041165,0.0002489,3]
[359526466,1746091840158,-651.57002622,0.0002489,2]
[359526467,1746091840168,-54749.27679296,0.000249,2]
[359526468,1746091840178,-5152.1239159,0.000249,3]
[359526469,1746091840188,-3161.23557313,0.000249,2]
[359526470,1746091840198,-151.0,0.000249,7]
[359526471,1746091840208,-151.0,0.000249,7]
[359526472,1746091840217,-151.458169,0.000249,7]
[359526473,1746091840227,-151.0,0.000249,7]
[359526474,1746091840238,-1652.73694,0.000249,2]
[359526475,1746091840248,-1652.73694,0.000249,2]
[359526476,1746091840258,-250.82046,0.000249,7]
[359526477,1746091840267,-250.82046,0.000249,7]
[359526478,1746091840277,-151.0,0.000249,7]
[359526479,1746091840287,-173.391819,0.000249,7]
[359526480,1746091840297,-173.391819,0.000249,7]
[359526481,1746091840306,-170231.80940089,0.000249,2]
[359526482,1746091840324,-1533.71436921,0.000249,2]
[359526483,1746091840335,-1932.6075498,0.000249,2]
[359526484,1746091840659,-678.67393402,0.000249,2]
[359526485,1746091840768,-7002.55101002,0.000249,2]
[359526487,1746091840975,-169.48802758,0.000249,2]
[359526514,1746091846373,-0.84638369,0.00022798,2]
[359526515,1746091846411,-149.33744331,0.00022798,2]
[359526516,1746091846420,-6595.32261679,0.000249,2]
[359526517,1746092103444,2000.0,0.0001644,5]
[359526646,1746092637700,-307.68948832,0.00022,2]
[359526647,1746092637723,-500.0,0.00022,2]
[359526648,1746092637751,-250.0,0.00022946,2]
[359526649,1746092637775,-1000.0,0.00022946,2]
[359526650,1746092637801,-300.0,0.00023268,2]
[359526651,1746092637825,-10000.0,0.00023269,2]
[359526652,1746092637849,-1761.9422001,0.00023384,2]
[359526653,1746092637872,-427.8109829,0.00023435,2]
[359526654,1746092637896,-335.16977814,0.00023467,2]
[359526655,1746092637920,-199.582643,0.00023962,2]
[359526656,1746092637942,-269.4918856,0.0002399,2]
[359526657,1746092637966,-10294.6479964,0.0002399,2]
[359526658,1746092637989,-300.0,0.00024657,2]
[359526659,1746092638013,-300.0,0.00024657,2]
[359526660,1746092638036,-380.0,0.00024658,2]
[359526661,1746092638060,-200.0,0.00024658,2]
[359526662,1746092638085,-500.0,0.00024773,2]
[359526663,1746092638108,-500.0,0.00024773,2]
[359526664,1746092638131,-500.0,0.00024773,2]
[359526665,1746092638154,-500.0,0.00024773,2]
[359526666,1746092638178,-500.0,0.00024773,2]
[359526667,1746092638202,-272.08043842,0.00024773,2]
[359526668,1746092638225,-500.0,0.00024773,2]
[359526669,1746092638251,-641.64019336,0.00024773,2]
[359526670,1746092638276,-500.0,0.00024773,2]
[359526671,1746092638300,-500.0,0.00024773,2]
[359526672,1746092638325,-500.0,0.00024773,2]
[359526673,1746092638349,-500.0,0.00024773,2]
[359526674,1746092638373,-500.0,0.00024773,2]
[359526675,1746092638398,-500.0,0.00024773,2]
[359526676,1746092638422,-500.0,0.00024773,2]
[359526677,1746092638447,-300.0,0.00024773,2]
[359526678,1746092638472,-500.0,0.00024773,2]
[359526679,1746092638494,-500.0,0.00024773,2]
[359526680,1746092638517,-500.0,0.00024773,2]
[359526681,1746092638541,-500.0,0.00024787,2]
[359526682,1746092638564,-500.0,0.00024787,2]
[359526683,1746092638588,-292.83166965,0.00024787,2]
[359526684,1746092638610,-495.20388827,0.00024787,2]
[359526685,1746092638634,-500.0,0.00024787,2]
[359526686,1746092638655,-466.1543874,0.00024787,2]
[359526687,1746092638677,-500.0,0.00024787,2]
[359526688,1746092638702,-500.0,0.00024787,2]
[359526689,1746092638725,-500.0,0.00024787,2]
[359526690,1746092638748,-245.36918048,0.00024787,2]
[359526691,1746092638773,-500.0,0.00024787,2]
[359526692,1746092638798,-500.0,0.00024787,2]
[359526693,1746092638826,-500.0,0.00024787,2]
[359526694,1746092638850,-500.0,0.00024787,2]
[359526695,1746092638875,-500.0,0.00024787,2]
[359526696,1746092638900,-500.0,0.00024787,2]
[359526697,1746092638922,-500.0,0.00024787,2]
[359526698,1746092638943,-500.0,0.00024787,2]
[359526699,1746092638980,-500.0,0.00024787,2]
[359526700,1746092639015,-500.0,0.00024787,2]
[359526701,1746092639048,-414.57232513,0.00024787,2]
[359526702,1746092639083,-500.0,0.00024787,2]
[359526703,1746092639121,-500.0,0.00024787,2]
[359526704,1746092639154,-500.0,0.00024787,2]
[359526705,1746092639188,-500.0,0.00024787,2]
[359526706,1746092639223,-500.0,0.00024787,2]
[359526707,1746092639255,-500.0,0.00024787,2]
[359526708,1746092639293,-500.0,0.00024787,2]
[359526709,1746092639334,-500.0,0.00024787,2]
[359526710,1746092639365,-500.0,0.00024787,2]
[359526711,1746092639404,-500.0,0.00024787,2]
[359526712,1746092639437,-241.24262907,0.00024787,2]
[359526713,1746092639469,-500.0,0.00024787,2]
[359526714,1746092639502,-474.60812633,0.00024787,2]
[359526715,1746092639538,-500.0,0.00024787,2]
[359526716,1746092639570,-500.0,0.00024787,2]
[359526717,1746092639603,-500.0,0.00024787,2]
[359526718,1746092639636,-500.0,0.00024787,2]
[359526719,1746092639668,-500.0,0.00024787,2]
[359526720,1746092639701,-500.0,0.00024787,2]
[359526721,1746092639735,-500.0,0.00024787,2]
[359526722,1746092639767,-500.0,0.00024787,2]
[359526723,1746092639800,-500.0,0.00024787,2]
[359526724,1746092639830,-499.99999999,0.00024787,2]
[359526725,1746092639858,-506.16645422,0.00024789,2]
[359526726,1746092639887,-500.0,0.00024789,2]
[359526727,1746092639916,-173.18237693,0.00024789,2]
[359526728,1746092639946,-500.0,0.00024789,2]
[359526729,1746092639977,-569.42041581,0.00024789,2]
[359526730,1746092640012,-277.36243637,0.00024789,2]
[359526731,1746092640050,-500.0,0.00024789,2]
[359526732,1746092640083,-500.0,0.00024789,2]
[359526733,1746092640114,-500.0,0.00024789,2]
[359526734,1746092640144,-500.0,0.00024789,2]
[359526735,1746092640175,-500.0,0.00024789,2]
[359526736,1746092640207,-500.0,0.00024789,2]
[359526737,1746092640237,-500.0,0.00024789,2]
[359526738,1746092640270,-500.0,0.00024789,2]
[359526739,1746092640301,-500.0,0.00024789,2]
[359526740,1746092640331,-500.0,0.00024789,2]
[359526741,1746092640362,-500.0,0.00024789,2]
[359526742,1746092640393,-500.0,0.00024789,2]
[359526743,1746092640426,-500.0,0.00024789,2]
[359526744,1746092640458,-500.0,0.00024789,2]
[359526745,1746092640489,-500.0,0.00024789,2]
[359526746,1746092640519,-300.0,0.00024789,2]
[359526747,1746092640551,-500.0,0.00024789,2]
[359526748,1746092640582,-361.02,0.0002479,3]
[359526749,1746092640607,-100000.0,0.0002479,2]
[359526750,1746092640632,-184.486,0.0002479,8]
[359526751,1746092640656,-31458.32450411,0.000248,2]
[359526759,1746092802885,-151.0,0.000249,7]
[359526760,1746092802921,-151.0,0.00025,7]
[359526761,1746092802954,-151.0,0.00025,7]
[359526762,1746092802984,-151.0,0.00025,7]
[359526763,1746092803232,-215.657701,0.00025,7]
[359526764,1746092803264,-151.0,0.00025,7]
[359526765,1746092803300,-151.0,0.00025,7]
[359526766,1746092803333,-151.0,0.00025,7]
[359526767,1746092803365,-193.168449,0.00025,7]
[359526768,1746092803397,-193.168449,0.00025,7]
[359526769,1746092803432,-193.168449,0.00025,7]
[359526770,1746092803464,-193.168449,0.00025,7]
[359526771,1746092803494,-151.0,0.00025,7]
[359526772,1746092803524,-230.084477,0.00025,7]
[359526773,1746092803553,-151.0,0.00025,7]
[359526774,1746092803583,-151.0,0.00025,7]
[359526775,1746092803612,-151.0,0.00025,7]
[359526776,1746092803643,-151.0,0.00025,7]
[359526777,1746092803672,-151.0,0.00025,7]
[359526778,1746092803702,-151.0,0.00025,7]
[359526779,1746092803732,-151.0,0.00025,7]
[359526780,1746092803763,-617.28456,0.00025,7]
[359526781,1746092803797,-192.397306,0.00025,7]
[359526782,1746092804011,-617.28456,0.00025,7]
[359526783,1746092804040,-192.397306,0.00025,7]
[359526784,1746092804070,-151.0,0.00025,7]
[359526785,1746092804101,-324.87596,0.00025,7]
[359526786,1746092804133,-324.87596,0.00025,7]
[359526787,1746092804167,-506.805796,0.00025,7]
[359526788,1746092804196,-157.733382,0.00025,7]
[359526789,1746092804226,-157.733382,0.00025,7]
[359526790,1746092804256,-1062.277913,0.00025,7]
[359526791,1746092804286,-1062.277913,0.00025,7]
[359526792,1746092804318,-151.0,0.00025,7]
[359526793,1746092804348,-151.0,0.00025,7]
[359526794,1746092804379,-841.10298755,0.00025,7]
[359526795,1746092804410,-180.822897,0.00025,7]
[359526796,1746092804441,-180.822897,0.00025,7]
[359526797,1746092804470,-160.0,0.00025,7]
[359526798,1746092804502,-662.895991,0.00025,7]
[359526799,1746092804532,-662.895991,0.00025,7]
[359526800,1746092804562,-182.07995741,0.00025,7]
[359526801,1746092804591,-421.4777418,0.00025,7]
[359526802,1746092804621,-151.0,0.00025,7]
[359526803,1746092804650,-151.0,0.00025,7]
[359526804,1746092804685,-151.0,0.00025,7]
[359526805,1746092804721,-151.0,0.00025,7]
[359526806,1746092804756,-225.738414,0.00025,7]
[359526807,1746092804786,-225.738414,0.00025,7]
[359526808,1746092804820,-266.60647189,0.000251,12]
[359526809,1746092804852,-266.60647185,0.00025452,13]
[359526810,1746092804883,-151.0,0.000257,19]
[359526811,1746092804914,-151.0,0.000259,16]
[359526812,1746092804944,-151.0,0.0002598,7]
[359526813,1746092804975,-151.0,0.0002598,7]
[359526814,1746092805005,-151.0,0.0002598,7]
[359526815,1746092805036,-151.0,0.0002598,7]
[359526816,1746092805066,-151.0,0.0002598,7]
[359526817,1746092805096,-151.0,0.0002598,7]
[359526818,1746092805126,-151.0,0.0002598,7]
[359526819,1746092805156,-151.0,0.0002598,7]
[359526820,1746092805197,-151.0,0.0002598,7]
[359526821,1746092805240,-151.0,0.0002598,7]
[359526822,1746092805287,-151.0,0.0002598,7]
[359526823,1746092805335,-151.0,0.0002598,7]
[359526824,1746092805378,-151.0,0.0002598,7]
[359526825,1746092805416,-617.28456,0.0002598,7]
[359526826,1746092805463,-192.397306,0.0002598,7]